fUST/lending_fUST_20240704
["ID","MTS","AMOUNT","RATE_DAILY","PERIOD"]
[331092895,1720077044374,-500.0,0.00014762,2]
[331092896,1720077044384,-500.0,0.00014762,2]
[331092897,1720077044393,-469.70322727,0.00014762,2]
[331092898,1720077044402,-559.26,0.00014762,2]
[331092899,1720077044412,-856.6,0.00014762,2]
[331092900,1720077044422,-500.0,0.00014762,2]
[331092901,1720077044431,-500.0,0.00014762,2]
[331092902,1720077044441,-524.37,0.00014762,2]
[331092903,1720077044450,-500.0,0.00014762,2]
[331092904,1720077044460,-500.0,0.00014762,2]
[331092905,1720077044470,-500.0,0.00014762,2]
[331092906,1720077044480,-500.0,0.00014762,2]
[331092907,1720077044489,-500.0,0.00014762,2]
[331092908,1720077044499,-344.29695865,0.00014762,2]
[331092909,1720077044508,-550.79,0.00014762,2]
[331092910,1720077044518,-500.0,0.00014762,2]
[331092911,1720077044529,-500.0,0.00014762,2]
[331092912,1720077044538,-500.0,0.00014762,2]
[331092913,1720077044549,-500.0,0.00014762,2]
[331092914,1720077044558,-500.0,0.00014762,2]
[331092915,1720077044568,-500.0,0.00014762,2]
[331092916,1720077044578,-500.0,0.00014762,2]
[331092917,1720077044587,-500.0,0.00014762,2]
[331092918,1720077044596,-500.0,0.00014762,2]
[331092919,1720077044605,-500.0,0.00014762,2]
[331092920,1720077044615,-500.0,0.00014762,2]
[331092921,1720077044624,-500.0,0.00014762,2]
[331092922,1720077044633,-536.6,0.00014762,2]
[331092923,1720077044642,-500.0,0.00014762,2]
[331092924,1720077044652,-1509.98,0.00014762,2]
[331092925,1720077044661,-500.0,0.00014762,2]
[331092926,1720077044670,-656.44,0.00014762,2]
[331092927,1720077044680,-500.0,0.00014762,2]
[331092928,1720077044689,-533.92,0.00014762,2]
[331092929,1720077044699,-500.0,0.00014762,2]
[331092930,1720077044708,-500.0,0.00014762,2]
[331092931,1720077044717,-500.0,0.00014762,2]
[331092932,1720077044726,-500.0,0.00014762,2]
[331092933,1720077044735,-500.0,0.00014762,2]
[331092934,1720077044745,-500.0,0.00014762,2]
[331092935,1720077044754,-544.49,0.00014762,2]
[331092936,1720077044763,-500.0,0.00014762,2]
[331092937,1720077044773,-724.17,0.00014762,2]
[331092938,1720077044782,-500.0,0.00014762,2]
[331092939,1720077044791,-500.0,0.00014762,2]
[331092940,1720077044802,-500.0,0.00014763,2]
[331092941,1720077044811,-645.98275932,0.00014763,2]
[331092942,1720077044821,-500.0,0.00014763,2]
[331092943,1720077044830,-311.96453479,0.00014763,2]
[331092944,1720077044839,-567.05276148,0.00014763,2]
[331092945,1720077044848,-500.0,0.00014763,2]
[331092946,1720077044857,-500.0,0.00014763,2]
[331092947,1720077044866,-500.0,0.00014763,2]
[331092948,1720077044876,-500.0,0.00014763,2]
[331092949,1720077044886,-500.0,0.00014763,2]
[331092950,1720077044900,-521.61,0.00014763,2]
[331092951,1720077044909,-500.0,0.00014763,2]
[331092952,1720077044918,-500.0,0.00014763,2]
[331092953,1720077044928,-500.0,0.00014763,2]
[331092954,1720077044938,-500.0,0.00014763,2]
[331092955,1720077044947,-500.0,0.00014763,2]
[331092956,1720077044957,-500.0,0.00014764,2]
[331092957,1720077044966,-500.0,0.00014764,2]
[331092958,1720077044978,-500.0,0.00014764,2]
[331092959,1720077044988,-500.0,0.00014764,2]
[331092960,1720077044998,-500.0,0.00014764,2]
[331092961,1720077045007,-500.0,0.00014764,2]
[331092962,1720077045017,-638.58535056,0.00014764,2]
[331092963,1720077045026,-500.0,0.00014764,2]
[331092964,1720077045035,-2445.58,0.00014764,2]
[331092965,1720077045047,-561.88,0.00014764,2]
[331092966,1720077045056,-500.0,0.00014764,2]
[331092967,1720077045066,-500.0,0.00014764,2]
[331092968,1720077045076,-500.0,0.00014764,2]
[331092970,1720077045085,-500.0,0.00014764,2]
[331092972,1720077045095,-500.0,0.00014764,2]
[331092973,1720077045105,-500.0,0.00014764,2]
[331092975,1720077045114,-500.0,0.00014765,2]
[331092976,1720077045123,-500.0,0.00014765,2]
[331092977,1720077045132,-6685.73,0.00014765,2]
[331092978,1720077045141,-688.39,0.00014767,2]
[331092980,1720077045150,-500.0,0.00014767,2]
[331092982,1720077045159,-591.38,0.00014767,2]
[331092983,1720077045168,-3931.57,0.00014767,2]
[331092985,1720077045177,-2005.47,0.00014767,2]
[331092987,1720077045186,-4347.73,0.00014777,2]
[331092989,1720077045195,-544.49,0.00014997,2]
[331092990,1720077045205,-6076.9012323,0.00014998,2]
[331092992,1720077045214,-11147.45043014,0.00014998,2]
[331092993,1720077045223,-3078.51196359,0.00014999,2]
[331092994,1720077045232,-789.77698638,0.00014999,2]
[331092995,1720077045241,-1597.25650539,0.00014999,2]
[331092996,1720077045250,-3130.06017381,0.00014999,4]
[331092997,1720077045259,-1463.29635585,0.00014999,2]
[331092998,1720077045268,-1634.59229075,0.00014999,2]
[331092999,1720077045277,-1104.60661146,0.00015,2]
[331093000,1720077045286,-808.0087546,0.00015,2]
[331093001,1720077045297,-395.4705443,0.00015,2]
[331093002,1720077045306,-500.0,0.00015027,2]
[331093003,1720077045315,-500.0,0.00015027,2]
[331093004,1720077045324,-1663.66,0.00015027,2]
[331093005,1720077045333,-9573.7,0.00015027,2]
[331093006,1720077045343,-1043.65,0.00015027,2]
[331093007,1720077045352,-500.0,0.00015031,2]
[331093008,1720077045361,-2079.94,0.00015031,2]
[331093009,1720077045370,-500.0,0.00015031,2]
[331093010,1720077045378,-500.0,0.00015031,2]
[331093011,1720077045387,-1387.52,0.00015031,2]
[331093012,1720077045396,-1663.16,0.00015031,2]
[331093013,1720077045406,-875.46,0.00015031,2]
[331093014,1720077045416,-731.92,0.00015031,2]
[331093015,1720077045426,-500.0,0.00015031,2]
[331093016,1720077045435,-3167.48,0.00015031,2]
[331093017,1720077045444,-500.0,0.00015031,2]
[331093018,1720077045453,-500.0,0.00015031,2]
[331093019,1720077045462,-500.0,0.00015031,2]
[331093020,1720077045471,-5941.91,0.00015031,2]
[331093021,1720077045480,-861.07,0.00015031,2]
[331093022,1720077045489,-643.47,0.00015031,2]
[331093023,1720077045498,-3019.32,0.00015031,2]
[331093024,1720077045508,-500.0,0.00015031,2]
[331093025,1720077045516,-744.51,0.00015036,2]
[331093026,1720077045526,-500.0,0.00015036,2]
[331093027,1720077045536,-500.0,0.00015036,2]
[331093028,1720077045547,-500.12268997,0.00015036,2]
[331093029,1720077045557,-500.0,0.00015036,2]
[331093030,1720077045566,-1086.06,0.00015036,2]
[331093031,1720077045575,-500.0,0.00015036,2]
[331093032,1720077045584,-559.26,0.00015036,2]
[331093033,1720077045593,-856.6,0.00015036,2]
[331093034,1720077045603,-500.0,0.00015036,2]
[331093035,1720077045612,-500.0,0.00015036,2]
[331093036,1720077045621,-524.37,0.00015036,2]
[331093037,1720077045631,-500.0,0.00015036,2]
[331093038,1720077045640,-500.0,0.00015036,2]
[331093039,1720077045649,-500.0,0.00015036,2]
[331093040,1720077045658,-550.79,0.00015036,2]
[331093041,1720077045667,-500.0,0.00015036,2]
[331093042,1720077045676,-500.0,0.00015036,2]
[331093043,1720077045685,-500.0,0.00015036,2]
[331093044,1720077045694,-500.0,0.00015036,2]
[331093045,1720077045703,-500.0,0.00015036,2]
[331093046,1720077045712,-168.89198821,0.00015036,2]
[331093047,1720077045722,-500.0,0.00015036,2]
[331093048,1720077045730,-500.0,0.00015036,2]
[331093049,1720077045741,-500.0,0.00015036,2]
[331093050,1720077045751,-500.0,0.00015036,2]
[331093051,1720077045761,-536.6,0.00015036,2]
[331093052,1720077045770,-1509.98,0.00015036,2]
[331093053,1720077045779,-500.0,0.00015036,2]
[331093054,1720077045788,-656.44,0.00015036,2]
[331093055,1720077045799,-500.0,0.00015036,2]
[331093056,1720077045808,-533.92,0.00015036,2]
[331093057,1720077045817,-500.0,0.00015036,2]
[331093058,1720077045826,-500.0,0.00015036,2]
[331093059,1720077045837,-512.18885282,0.00015036,2]
[331093060,1720077045847,-544.49,0.00015036,2]
[331093061,1720077045858,-500.0,0.00015036,2]
[331093062,1720077045866,-724.17,0.00015036,2]
[331093063,1720077045876,-500.0,0.00015036,2]
[331093064,1720077045887,-500.0,0.00015036,2]
[331093065,1720077045902,-500.0,0.00015037,2]
[331093066,1720077045911,-500.0,0.00015037,2]
[331093067,1720077045922,-500.0,0.00015037,2]
[331093068,1720077045934,-515.74477694,0.00015037,2]
[331093069,1720077045947,-220.99482938,0.00015037,2]
[331093070,1720077045956,-500.0,0.00015037,2]
[331093071,1720077045966,-521.61,0.00015037,2]
[331093072,1720077045975,-500.0,0.00015037,2]
[331093073,1720077045985,-500.0,0.00015037,2]
[331093074,1720077045995,-500.0,0.00015037,2]
[331093075,1720077046004,-500.0,0.00015037,2]
[331093076,1720077046013,-500.0,0.00015037,2]
[331093077,1720077046021,-500.0,0.00015038,2]
[331093078,1720077046030,-500.0,0.00015038,2]
[331093079,1720077046040,-500.0,0.00015038,2]
[331093080,1720077046050,-2445.58,0.00015038,2]
[331093081,1720077046060,-561.88,0.00015038,2]
[331093082,1720077046070,-500.0,0.00015038,2]
[331093083,1720077046079,-500.0,0.00015038,2]
[331093084,1720077046088,-500.0,0.00015038,2]
[331093085,1720077046183,-349.38026336,0.00015038,2]
[331093086,1720077046206,-322.47036302,0.00015038,2]
[331093087,1720077046215,-500.0,0.00015038,2]
[331093088,1720077046225,-500.0,0.00015039,2]
[331093089,1720077046235,-500.0,0.00015039,2]
[331093090,1720077046246,-6685.73,0.00015039,2]
[331093091,1720077046256,-688.39,0.00015041,2]
[331093092,1720077046265,-500.0,0.00015041,2]
[331093094,1720077046274,-591.38,0.00015041,2]
[331093095,1720077046283,-3931.57,0.00015041,2]
[331093097,1720077046293,-2005.47,0.00015041,2]
[331093098,1720077046302,-544.49,0.00015041,2]
[331093099,1720077046312,-4347.73,0.00015051,2]
[331093100,1720077046321,-500.0,0.00015301,2]
[331093101,1720077046331,-500.0,0.00015301,2]
[331093102,1720077046340,-1663.66,0.00015301,2]
[331093103,1720077046349,-9573.7,0.00015301,2]
[331093104,1720077046359,-1043.65,0.00015301,2]
[331093105,1720077046368,-500.0,0.00015305,2]
[331093106,1720077046377,-2079.94,0.00015305,2]
[331093107,1720077046386,-500.0,0.00015305,2]
[331093108,1720077046395,-500.0,0.00015305,2]
[331093109,1720077046405,-1387.52,0.00015305,2]
[331093110,1720077046414,-1663.16,0.00015305,2]
[331093111,1720077046423,-875.46,0.00015305,2]
[331093112,1720077046432,-731.92,0.00015305,2]
[331093113,1720077046441,-500.0,0.00015305,2]
[331093114,1720077046450,-3167.48,0.00015305,2]
[331093115,1720077046459,-403.92013656,0.00015305,2]
[331093116,1720077046468,-500.0,0.00015305,2]
[331093117,1720077046478,-5941.91,0.00015305,2]
[331093118,1720077046487,-861.07,0.00015305,2]
[331093121,1720077046496,-643.47,0.00015305,2]
[331093124,1720077046505,-3019.32,0.00015305,2]
[331093126,1720077046514,-500.0,0.00015305,2]
[331093128,1720077046523,-744.51,0.0001531,2]
[331093130,1720077046534,-369.50214599,0.0001531,2]
[331093132,1720077046544,-500.0,0.0001531,2]
[331093134,1720077046552,-500.0,0.0001531,2]
[331093136,1720077046561,-1086.06,0.0001531,2]
[331093138,1720077046571,-559.26,0.0001531,2]
[331093140,1720077046581,-856.6,0.0001531,2]
[331093142,1720077046590,-500.0,0.0001531,2]
[331093144,1720077046600,-500.0,0.0001531,2]
[331093146,1720077046609,-524.37,0.0001531,2]
[331093148,1720077046618,-195.22022711,0.0001531,2]
[331093150,1720077046627,-500.0,0.0001531,2]
[331093151,1720077046636,-500.0,0.0001531,2]
[331093152,1720077046645,-550.79,0.0001531,2]
[331093153,1720077046654,-500.0,0.0001531,2]
[331093154,1720077046663,-500.0,0.0001531,2]
[331093155,1720077046673,-500.0,0.0001531,2]
[331093156,1720077046682,-536.6,0.0001531,2]
[331093157,1720077046692,-1509.98,0.0001531,2]
[331093159,1720077046701,-500.0,0.0001531,2]
[331093161,1720077046710,-656.44,0.0001531,2]
[331093162,1720077046719,-500.0,0.0001531,2]
[331093164,1720077046729,-533.92,0.0001531,2]
[331093166,1720077046738,-312.5637399,0.0001531,2]
[331093168,1720077046747,-500.0,0.0001531,2]
[331093170,1720077046756,-500.0,0.0001531,2]
[331093171,1720077046766,-724.17,0.0001531,2]
[331093173,1720077046775,-500.0,0.0001531,2]
[331093175,1720077046784,-500.0,0.0001531,2]
[331093177,1720077046794,-500.0,0.00015311,2]
[331093179,1720077046804,-500.0,0.00015311,2]
[331093180,1720077046813,-500.0,0.00015311,2]
[331093182,1720077046822,-500.0,0.00015311,2]
[331093184,1720077046831,-521.61,0.00015311,2]
[331093186,1720077046840,-544.49,0.00015311,2]
[331093187,1720077046849,-500.0,0.00015311,2]
[331093189,1720077046859,-227.731,0.00015311,2]
[331093191,1720077046868,-255.44812004,0.00015311,2]
[331093192,1720077046878,-500.0,0.00015311,2]
[331093194,1720077046888,-500.0,0.00015311,2]
[331093196,1720077046902,-500.0,0.00015312,2]
[331093197,1720077046911,-500.0,0.00015312,2]
[331093198,1720077046920,-445.49334597,0.00015312,2]
[331093200,1720077046930,-2445.58,0.00015312,2]
[331093202,1720077046942,-561.88,0.00015312,2]
[331093204,1720077046951,-500.0,0.00015312,2]
[331093205,1720077046960,-500.0,0.00015312,2]
[331093207,1720077046969,-577.1689536,0.00015312,2]
[331093209,1720077046979,-500.0,0.00015312,2]
[331093210,1720077046989,-478.17818959,0.00015313,2]
[331093212,1720077046998,-500.0,0.00015313,2]
[331093214,1720077047007,-6685.73,0.00015313,2]
[331093215,1720077047017,-858.47517737,0.00015314,2]
[331093217,1720077047025,-688.39,0.00015315,2]
[331093219,1720077047035,-500.0,0.00015315,2]
[331093220,1720077047044,-591.38,0.00015315,2]
[331093222,1720077047054,-2038.10892012,0.00015315,2]
[331093237,1720077047256,-500.0,0.00014205,2]
[331093239,1720077047266,-500.0,0.00014479,2]
[331093241,1720077047277,-500.0,0.00014753,2]
[331093242,1720077047286,-500.0,0.00015027,2]
[331093243,1720077047297,-500.0,0.00015301,2]
[331093244,1720077047306,-452.81297989,0.00015315,2]
[331093248,1720077047570,-407.26816379,0.00015315,2]
[331093249,1720077047755,-500.0,0.00014214,2]
[331093250,1720077047764,-500.0,0.00014215,2]
[331093251,1720077047774,-500.0,0.00014488,2]
[331093252,1720077047783,-500.0,0.00014489,2]
[331093253,1720077047792,-500.0,0.00014763,2]
[331093254,1720077047804,-500.0,0.00015037,2]
[331093255,1720077047817,-1033.3799362,0.00015315,2]
[331093256,1720077047825,-2005.47,0.00015315,2]
[331093257,1720077047835,-4347.73,0.00015325,2]
[331093258,1720077047845,-152.272,0.000154,2]
[331093259,1720077047855,-877.0,0.00015451,2]
[331093260,1720077047864,-500.0,0.00015575,2]
[331093261,1720077047873,-500.0,0.00015575,2]
[331093262,1720077047883,-1663.66,0.00015575,2]
[331093263,1720077047895,-6920.4880638,0.00015575,2]
[331093264,1720077047907,-284.61,0.00015575,2]
[331093265,1720077114121,1000.0,0.00024,60]
[331093266,1720077127871,1000.0,0.00022,30]
[331093267,1720077141325,1000.0,0.00021,27]
[331093268,1720077179538,1000.0,0.00015,15]
[331093269,1720077276870,1398.3159145,0.00013208,2]
[331093270,1720077302791,3432.5322309,0.00013205,2]
[331093271,1720077304881,1748.3671133,0.00013208,2]
[331093272,1720077310338,1004.81471129,0.00013208,2]
[331093273,1720077359885,825.36045311,9.999e-05,2]
[331093274,1720077364928,316.94290193,9.999e-05,2]
[331093276,1720077464327,637.2169877,0.00013699,2]
[331093277,1720077478518,303.95742929,9.999e-05,2]
[331093278,1720077602392,587.7197832,0.00013699,2]
[331093279,1720077966359,18571.1797672,0.00013201,2]
[331093280,1720077969151,291.4726412,0.00013699,2]
[331093281,1720078040168,-580.11486391,0.00014103,2]
[331093282,1720078040188,-111.44343707,0.00014104,2]
[331093283,1720078041197,-102.54705442,0.00014104,2]
[331093284,1720078041216,-53.20351205,0.00014173,2]
[331093285,1720078046119,-160.78697941,0.00014173,2]
[331093286,1720078046139,-300.0,0.00014194,2]
[331093287,1720078046160,-101.23748766,0.00014194,2]
[331093288,1720078053150,-198.76251234,0.00014194,2]
[331093289,1720078053171,-2561.8853429,0.00014195,2]
[331093290,1720078131704,1000.0,0.00015,7]
[331093517,1720078238499,-300.0,0.00014193,2]
[331093518,1720078238512,-300.0,0.00014193,2]
[331093520,1720078238522,-172.63775084,0.00014193,2]
[331093522,1720078238535,-380.88499469,0.00014193,2]
[331093524,1720078238546,-500.0,0.00014193,2]
[331093525,1720078238556,-230.36117809,0.00014193,2]
[331093527,1720078238567,-6902.9349394,0.00014194,2]
[331093529,1720078238580,-657.00848136,0.00014194,2]
[331093531,1720078238593,-12932.68644334,0.00014194,2]
[331093533,1720078238603,-20492.6298641,0.00014194,2]
[331093535,1720078238613,-20492.6298641,0.00014199,2]
[331093537,1720078238622,-500.0,0.00014202,2]
[331093539,1720078238632,-500.0,0.00014202,2]
[331093541,1720078238641,-500.0,0.00014202,2]
[331093543,1720078238651,-1872.14,0.00014202,2]
[331093545,1720078238661,-500.0,0.00014202,2]
[331093547,1720078238671,-10372.19,0.00014202,2]
[331093549,1720078238681,-500.0,0.00014202,2]
[331093550,1720078238690,-500.0,0.00014202,2]
[331093553,1720078238700,-500.0,0.00014202,2]
[331093555,1720078238710,-1250.42,0.00014202,2]
[331093557,1720078238721,-500.0,0.00014202,2]
[331093559,1720078238730,-504.12768705,0.00014203,2]
[331093561,1720078238739,-500.0,0.00014203,2]
[331093563,1720078238749,-871.67,0.00014203,2]
[331093565,1720078238759,-564.46011889,0.00014203,2]
[331093566,1720078238769,-500.0,0.00014203,2]
[331093568,1720078238779,-500.0,0.00014203,2]
[331093570,1720078238788,-500.0,0.00014203,2]
[331093572,1720078238798,-500.0,0.00014203,2]
[331093574,1720078238808,-500.0,0.00014203,2]
[331093576,1720078238818,-1193.01,0.00014203,2]
[331093578,1720078238828,-500.0,0.00014203,2]
[331093581,1720078238838,-500.0,0.00014203,2]
[331093583,1720078238848,-428.44142637,0.00014203,2]
[331093585,1720078238858,-637.46,0.00014203,2]
[331093587,1720078238868,-943.19,0.00014203,2]
[331093588,1720078238878,-3861.36,0.00014203,2]
[331093590,1720078238888,-500.0,0.00014203,2]
[331093593,1720078238898,-6438.31,0.00014203,2]
[331093594,1720078238908,-500.0,0.00014203,2]
[331093596,1720078238917,-500.0,0.00014203,2]
[331093599,1720078238927,-500.0,0.00014203,2]
[331093601,1720078238937,-609.94,0.00014203,2]
[331093602,1720078238947,-2097.7,0.00014203,2]
[331093605,1720078238956,-500.0,0.00014203,2]
[331093607,1720078238967,-500.0,0.00014203,2]
[331093609,1720078238977,-500.0,0.00014203,2]
[331093611,1720078238987,-500.0,0.00014203,2]
[331093613,1720078238998,-591.75,0.00014203,2]
[331093614,1720078239009,-500.0,0.00014203,2]
[331093617,1720078239019,-500.0,0.00014203,2]
[331093618,1720078239029,-500.0,0.00014203,2]
[331093620,1720078239039,-500.0,0.00014203,2]
[331093622,1720078239049,-500.0,0.00014203,2]
[331093624,1720078239059,-504.64,0.00014203,2]
[331093626,1720078239069,-1531.28,0.00014203,2]
[331093628,1720078239079,-500.0,0.00014203,2]
[331093630,1720078239090,-500.0,0.00014203,2]
[331093633,1720078239101,-1938.34,0.00014203,2]
[331093634,1720078239111,-1063.38,0.00014203,2]
[331093635,1720078239121,-500.0,0.00014203,2]
[331093636,1720078239131,-500.0,0.00014203,2]
[331093637,1720078239141,-500.0,0.00014203,2]
[331093638,1720078239151,-500.0,0.00014203,2]
[331093639,1720078239161,-500.0,0.00014203,2]
[331093640,1720078239171,-500.0,0.00014203,2]
[331093641,1720078239182,-500.0,0.00014203,2]
[331093642,1720078239192,-874.7,0.00014203,2]
[331093643,1720078239202,-650.92,0.00014203,2]
[331093644,1720078239212,-606.25,0.00014203,2]
[331093645,1720078239222,-500.0,0.00014203,2]
[331093646,1720078239232,-500.0,0.00014203,2]
[331093647,1720078239242,-500.0,0.00014203,2]
[331093648,1720078239251,-500.0,0.00014203,2]
[331093649,1720078239263,-500.0,0.00014203,2]
[331093650,1720078239272,-3736.55,0.00014203,2]
[331093651,1720078239283,-500.0,0.00014203,2]
[331093653,1720078239293,-500.0,0.00014203,2]
[331093655,1720078239304,-500.0,0.00014203,2]
[331093657,1720078239314,-500.0,0.00014203,2]
[331093659,1720078239325,-725.83,0.00014203,2]
[331093661,1720078239335,-1340.6,0.00014203,2]
[331093663,1720078239345,-500.0,0.00014203,2]
[331093665,1720078239356,-500.0,0.00014203,2]
[331093667,1720078239366,-500.0,0.00014203,2]
[331093669,1720078239377,-500.0,0.00014203,2]
[331093671,1720078239387,-500.0,0.00014203,2]
[331093673,1720078239398,-500.0,0.00014203,2]
[331093675,1720078239409,-500.0,0.00014203,2]
[331093677,1720078239419,-1020.46,0.00014203,2]
[331093679,1720078239430,-719.04,0.00014203,2]
[331093681,1720078239441,-500.0,0.00014203,2]
[331093683,1720078239454,-500.0,0.00014203,2]
[331093685,1720078239466,-500.0,0.00014203,2]
[331093687,1720078239476,-848.16,0.00014203,2]
[331093689,1720078239487,-500.0,0.00014203,2]
[331093691,1720078239497,-500.0,0.00014203,2]
[331093693,1720078239508,-2123.15440622,0.00014204,2]
[331093695,1720078239519,-20492.6298641,0.00014204,2]
[331093697,1720078239530,-416.5541721,0.00014204,2]
[331093699,1720078239544,-500.0,0.00014204,2]
[331093701,1720078239556,-500.0,0.00014204,2]
[331093703,1720078239567,-330.52327294,0.00014204,2]
[331093705,1720078239577,-500.0,0.00014204,2]
[331093707,1720078239589,-311.85933168,0.00014204,2]
[331093709,1720078239600,-500.0,0.00014204,2]
[331093711,1720078239611,-500.0,0.00014204,2]
[331093714,1720078239622,-497.84591713,0.00014204,2]
[331093716,1720078239632,-500.0,0.00014204,2]
[331093718,1720078239642,-500.0,0.00014204,2]
[331093720,1720078239653,-500.0,0.00014204,2]
[331093722,1720078239663,-500.0,0.00014204,2]
[331093724,1720078239673,-424.6243159,0.00014204,2]
[331093726,1720078239686,-500.0,0.00014204,2]
[331093728,1720078239697,-500.0,0.00014204,2]
[331093730,1720078239707,-329.61332008,0.00014204,2]
[331093732,1720078239718,-504.51842998,0.00014204,2]
[331093734,1720078239727,-500.0,0.00014204,2]
[331093736,1720078239737,-500.0,0.00014204,2]
[331093738,1720078239747,-500.0,0.00014204,2]
[331093740,1720078239758,-500.0,0.00014204,2]
[331093742,1720078239773,-500.0,0.00014204,2]
[331093744,1720078239783,-503.71636335,0.00014204,2]
[331093746,1720078239793,-500.0,0.00014204,2]
[331093748,1720078239803,-500.0,0.00014204,2]
[331093750,1720078239812,-500.0,0.00014204,2]
[331093752,1720078239821,-507.2552439,0.00014204,2]
[331093754,1720078239830,-595.18,0.00014204,2]
[331093756,1720078239840,-500.0,0.00014204,2]
[331093758,1720078239850,-500.0,0.00014204,2]
[331093760,1720078239860,-500.0,0.00014204,2]
[331093762,1720078239871,-500.0,0.00014204,2]
[331093763,1720078239881,-500.0,0.00014204,2]
[331093765,1720078239891,-500.0,0.00014204,2]
[331093767,1720078239901,-500.0,0.00014204,2]
[331093769,1720078239912,-500.0,0.00014204,2]
[331093771,1720078239922,-500.0,0.00014204,2]
[331093773,1720078239931,-500.0,0.00014204,2]
[331093775,1720078239942,-500.0,0.00014204,2]
[331093777,1720078239951,-500.0,0.00014204,2]
[331093779,1720078239962,-500.0,0.00014204,2]
[331093782,1720078239973,-500.0,0.00014204,2]
[331093783,1720078239983,-500.0,0.00014204,2]
[331093786,1720078239993,-500.0,0.00014204,2]
[331093790,1720078240004,-500.0,0.00014204,2]
[331093792,1720078240015,-500.0,0.00014204,2]
[331093793,1720078240025,-296.33772607,0.00014204,2]
[331093795,1720078240034,-500.0,0.00014204,2]
[331093797,1720078240043,-500.0,0.00014204,2]
[331093799,1720078240053,-500.0,0.00014204,2]
[331093801,1720078240064,-553.31548446,0.00014204,2]
[331093803,1720078240074,-500.0,0.00014204,2]
[331093806,1720078240084,-500.0,0.00014204,2]
[331093807,1720078240094,-500.0,0.00014204,2]
[331093809,1720078240104,-500.0,0.00014204,2]
[331093811,1720078240114,-500.0,0.00014204,2]
[331093813,1720078240124,-503.65334066,0.00014204,2]
[331093815,1720078240135,-500.0,0.00014204,2]
[331093818,1720078240145,-500.0,0.00014204,2]
[331093819,1720078240155,-500.0,0.00014204,2]
[331093821,1720078240166,-500.0,0.00014204,2]
[331093824,1720078240177,-500.0,0.00014204,2]
[331093826,1720078240187,-500.0,0.00014204,2]
[331093828,1720078240197,-500.0,0.00014204,2]
[331093830,1720078240208,-500.0,0.00014204,2]
[331093832,1720078240218,-500.0,0.00014204,2]
[331093834,1720078240227,-500.0,0.00014204,2]
[331093835,1720078240237,-500.0,0.00014204,2]
[331093837,1720078240248,-500.0,0.00014204,2]
[331093840,1720078240258,-502.56230673,0.00014204,2]
[331093842,1720078240272,-500.0,0.00014204,2]
[331093844,1720078240283,-500.0,0.00014204,2]
[331093845,1720078240296,-500.0,0.00014204,2]
[331093848,1720078240306,-367.59822022,0.00014204,2]
[331093849,1720078240316,-531.90645372,0.00014204,2]
[331093852,1720078240327,-500.0,0.00014204,2]
[331093853,1720078240337,-500.0,0.00014204,2]
[331093855,1720078240346,-428.15097289,0.00014204,2]